[Event "5th Sharjah Masters 2022"]
[Site "Sharjah"]
[Date "2022.05.26"]
[Round "6.29"]
[White "Haznedaroglu, Kivanc"]
[Black "Kuybokarov, Temur"]
[Result "0-1"]
[ECO "E60"]
[WhiteElo "2425"]
[BlackElo "2582"]
[Annotator "TA"]
[PlyCount "138"]
[EventDate "2022.05.21"]
[EventType "swiss"]
[EventCountry "UAE"]
[SourceTitle "playchess.com"]
[Source "ChessBase"]
[SourceQuality "1"]
[TimeControl "5400+30"]

{[%evp 9,138,5,22,14,15,18,23,21,9,0,0,0,0,-18,0,0,0,0,0,1,9,-33,-10,-58,-63,-60,-49,-58,-56,-66,-44,-88,-82,-96,-83,-76,-81,-79,-64,-70,-75,-112,-99,-129,-139,-124,-125,-121,-105,-129,-127,-135,-133,-121,-111,-122,-123,-134,-90,-80,-20,-33,0,0,0,0,0,-32,-21,-271,-294,-294,-283,-283,-277,-294,-288,-285,-271,-281,-271,-271,-253,-286,-264,-254,-245,-365,-294,-499,-479,-510,-472,-1649,-1468,-5398,-5179,-1860,-5339,-4221,-2509,-1790,-1729,-5949,-5949,-5795,-5604,-2118,-939,-1873,-1621,-1366,-241,-1190,-894,-1137,-707,-1022,-556,-1193,-1102,-1490,-1470,-2442,-2158,-2029,-2509,-2523,-1876,-2471,-2028]} 1. d4 {[%emt 0:00:02]} Nf6 {[%emt 0:00:09]} 2. c4 {[%emt 0:00:05]} g6 {[%emt 0:00:05]} 3. h4 {[%emt 0:00:06]} c5 {[%emt 0:00:35]} 4. d5 {[%emt 0:02:58]} Bg7 {[%emt 1:31:41]} 5. Nc3 {[%emt 0:00:08]} d6 {[%emt 0:00:00]} 6. e4 {[%emt 0:00:19] E60: King's Indian: Unusual lines and Fianchetto Variation without Nc3.} e6 {[%emt 0:00:00]} 7. Be2 {[%emt 0:00:52]} exd5 {[%emt 0:00:00]} 8. exd5 {[%emt 0:00:03] White has an edge.} Nbd7 $5 {[%emt 0:00:00][%mdl 4] A promising side line.} 9. h5 {[%emt 0:03:55]} Nxh5 {[%emt 0:00:00]} 10. Bxh5 {[%emt 0:02:48]} gxh5 {[%emt 0:00:00] [#]} 11. Nf3 $146 {[%emt 0:00:16]} ({Predecessor:} 11. Qe2+ Qe7 12. Bg5 Bxc3+ 13. bxc3 f6 14. Bf4 Qxe2+ 15. Nxe2 Ke7 16. Rxh5 Nb6 17. f3 {½-½ (30) Fernandez,D (2492)-Kuybokarov,T (2587) Canberra 2022}) 11... Qe7+ {[%emt 0:00:00]} 12. Kf1 {[%emt 0:00:34]} Bxc3 {[%emt 0:00:00]} 13. bxc3 {[%emt 0:00:02]} f6 {[%emt 0:00:00]} 14. Rxh5 {[%emt 0:12:15]} Nb6 {[%emt 0:00:00]} 15. Rh4 {[%emt 0:02:34] Prevents Bg4.} Bf5 {[%emt 0:00:00] Prevents Qd3.} 16. a4 {[%emt 0:01:58]} (16. Bf4 $11 {deserves consideration.}) 16... O-O-O $15 {[%emt 0:00:00]} 17. a5 {[%emt 0:00:57]} Nd7 {[%emt 0:00:00]} 18. a6 {[%emt 0:00:59]} b6 {[%emt 0:00:00]} 19. Qa4 {[%emt 0:00:42] Threatening mate with Qc6+.} Nf8 {[%emt 0:00:00]} ({But not} 19... Ne5 20. Nxe5 dxe5 21. Ra2 $11) 20. Be3 {[%emt 0:01:55]} Ng6 {[%emt 0:00:00]} 21. Rh6 {[%emt 0:01:46]} Bd3+ {[%emt 0:00:00]} 22. Kg1 {[%emt 0:00:09]} Qd7 {[%emt 0:00:00]} 23. Nd2 {[%emt 0:13:46]} Qxa4 {[%emt 0:00:00]} 24. Rxa4 {[%emt 0:00:02]} Rde8 {[%emt 0:00:00]} 25. Rh3 {[%emt 0:01:15]} h5 {[%emt 0:00:00]} 26. Ra1 {[%emt 0:06:49][%cal Oe3c5]} Be2 $1 {[%emt 0:00:00]} 27. Re1 {[%emt 0:01:56] [#]} Bg4 {[%emt 0:00:00][%cal Be2g4,Bg4f5,Bf5d3][%mdl 32]} 28. Rh1 {[%emt 0:00:02]} Nf4 {[%emt 0:00:00]} 29. f3 {[%emt 0:08:46]} Nd3 {[%emt 0:00:00][%cal Bf4d3,Bd3e5,Be5g6][%mdl 32] Black is more active.} 30. Re2 {[%emt 0:00:15]} Bf5 {[%emt 0:00:00]} 31. Rh4 {[%emt 0:03:01]} Ne5 {[%emt 0:00:00]} 32. Re1 {[%emt 0:08:15] [#]} Ng6 {[%emt 0:00:00]} 33. Rh1 {[%emt 0:00:20]} Bd3 {[%emt 0:00:00]} 34. g3 {[%emt 0:08:55]} f5 {[%emt 0:02:39]} (34... Kd7 $17) 35. Kf2 $11 {[%emt 0:00:14]} h4 {[%emt 0:01:03]} 36. Bg5 {[%emt 0:03:21]} hxg3+ {[%emt 0:02:39]} 37. Kxg3 {[%emt 0:00:05]} Rxh1 {[%emt 0:00:35]} 38. Rxh1 {[%emt 0:00:05]} Re2 {[%emt 0:00:10]} 39. f4 $2 {[%emt 0:06:01] White does not recover from this.} Rxd2 $19 {[%emt 0:00:41]} 40. Rh6 {[%emt 0:00:01] [#]} Bxc4 $1 {[%emt 0:00:41]} 41. Rxg6 {[%emt 0:00:02]} Rxd5 {[%emt 0:00:58][%mdl 4096] Endgame KRB-KRB} ({Don't blunder} 41... Bxa6 $2 42. Rg8+ Kc7 43. Rg7+ Kb8 44. Rg8+ Bc8 45. c4 $19) 42. Rg8+ {[%emt 0:04:17]} Kc7 {[%emt 0:00:08]} 43. Rg7+ {[%emt 0:00:01]} Kc6 {[%emt 0:00:08]} 44. Bf6 {[%emt 0:00:04]} Bxa6 {[%emt 0:02:35]} ({Not} 44... Rd3+ $2 45. Kf2 $19) 45. Rxa7 {[%emt 0:00:25]} Bb7 {[%emt 0:01:18]} 46. Kf2 {[%emt 0:00:37]} Rd3 {[%emt 0:00:41]} 47. Ke2 {[%emt 0:00:08]} Rh3 {[%emt 0:00:10]} 48. Ra1 {[%emt 0:00:22]} (48. Kd2 $142) 48... b5 {[%emt 0:00:32]} 49. Rg1 $2 {[%emt 0:01:33]} (49. Bg7) 49... Kd5 {[%emt 0:01:27] And now ...Kc4 would win.} 50. Kd2 {[%emt 0:00:38]} Kc4 {[%emt 0:00:12]} 51. Rg7 {[%emt 0:00:27]} (51. Rb1 $142) 51... Be4 {[%emt 0:00:38] Hoping for ...Rh2+.} 52. Rd7 {[%emt 0:00:06]} Rd3+ {[%emt 0:00:14]} 53. Ke2 {[%emt 0:00:04]} Rxc3 {[%emt 0:01:19]} 54. Rxd6 {[%emt 0:00:05]} Rh3 {[%emt 0:00:40]} 55. Rd8 {[%emt 0:00:11]} b4 {[%emt 0:00:10][%cal Bb5b4,Bb4b3][%mdl 32]} 56. Rc8 {[%emt 0:00:09]} Rh2+ {[%emt 0:02:09]} 57. Ke3 {[%emt 0:00:09]} b3 {[%emt 0:01:42]} 58. Rb8 {[%emt 0:00:02]} Bc2 {[%emt 0:00:21]} (58... Rg2 $142 59. Be5 Bc6) 59. Rd8 {[%emt 0:01:44] [#]} Bd3 $1 {[%emt 0:01:07][%mdl 512]} 60. Rb8 {[%emt 0:00:46]} Re2+ {[%emt 0:00:54]} 61. Kf3 {[%emt 0:00:02]} Re4 {[%emt 0:00:18] Black is clearly winning.} 62. Be5 {[%emt 0:02:35]} Be2+ {[%emt 0:00:08]} 63. Kf2 {[%emt 0:00:01]} Bg4 {[%emt 0:00:07]} 64. Rb6 {[%emt 0:00:23]} Bh5 {[%emt 0:00:22] Threatens to win with ...Re2+.} 65. Kg3 {[%emt 0:01:02]} Be8 {[%emt 0:01:17]} 66. Kf3 {[%emt 0:03:40]} Bb5 {[%emt 0:00:13][%cal Oe4e5]} 67. Bf6 {[%emt 0:00:06]} Kb4 {[%emt 0:00:21] aiming for ...c4.} 68. Rb8 {[%emt 0:00:54]} c4 {[%emt 0:00:07] ...Re6 is the strong threat.} 69. Rc8 {[%emt 0:05:55]} Re6 {[%emt 0:00:15] Weighted Error Value: White=0.69/Black=0.14 (very precise)} 0-1

[Event "5th Sharjah Masters 2022"]
[Site "Sharjah"]
[Date "2022.05.26"]
[Round "6.30"]
[White "Msellek, Ilyass"]
[Black "Sankalp Gupta"]
[Result "0-1"]
[ECO "C64"]
[WhiteElo "2411"]
[BlackElo "2505"]
[Annotator "TA"]
[PlyCount "74"]
[EventDate "2022.05.21"]
[EventType "swiss"]
[EventCountry "UAE"]
[SourceTitle "playchess.com"]
[Source "ChessBase"]
[SourceQuality "1"]
[TimeControl "5400+30"]

{[%evp 10,74,37,41,44,41,29,38,27,25,30,38,35,52,79,50,62,57,99,69,84,62,79,1,-15,-20,-16,-31,-18,-71,-64,-68,-68,-80,-102,-257,-249,-262,-253,-258,-261,-245,-238,-235,-234,-281,-268,-464,-466,-487,-480,-470,-468,-468,-464,-466,-453,-637,-634,-712,-700,-1331,-1328,-6223,-5712,-6187,-5402]} 1. e4 {[%emt 0:00:09]} e5 {[%emt 0:00:02]} 2. Nf3 {[%emt 0:00:22]} Nc6 {[%emt 0:00:01]} 3. Bb5 {[%emt 0:01:05]} a6 {[%emt 0:00:25]} 4. Ba4 {[%emt 1:30:54]} Bc5 {[%emt 0:00:04]} 5. c3 {[%emt 0:00:00]} Nge7 {[%emt 0:00:38]} 6. O-O {[%emt 0:00:00]} Ba7 {[%emt 0:00:12] C64: Ruy Lopez: Classical Defence (3...Bc5) except 4 0-0 Nf6.} 7. d4 {[%emt 0:00:00]} Ng6 {[%emt 0:00:01]} 8. Bg5 {[%emt 0:00:00]} f6 {[%emt 0:00:02] White is slightly better.} 9. Be3 {[%emt 0:00:00]} O-O {[%emt 0:06:24]} 10. Nbd2 {[%emt 0:00:00]} exd4 {[%emt 0:02:51]} 11. Nxd4 {[%emt 0:00:00]} Nce7 {[%emt 0:03:07]} 12. Qh5 {[%emt 0:00:00] [#]} d5 $5 $146 {[%emt 0:17:38][%mdl 8] New and interesting.} ({Predecessor:} 12... c5 13. Nf5 Nxf5 14. exf5 Ne5 15. f4 Nd3 16. Qe2 Nxb2 17. Bb3+ d5 18. Rab1 Re8 {0-1 (39) Lei,T (2505)-Stefanova,A (2470) Chess.com INT 2021}) 13. Bb3 {[%emt 0:00:00][%cal Re4d5]} c6 {[%emt 0:06:53][%cal Bc7c6,Bc6c5][%mdl 32]} 14. Rad1 {[%emt 0:00:00]} Ne5 {[%emt 0:04:14][%cal Bg6e5,Be5d3,Bd3b2][%mdl 32]} 15. h3 {[%emt 0:00:00]} Kh8 {[%emt 0:02:04]} 16. f4 {[%emt 0:00:00]} (16. Bc2 $16) 16... Nd3 $11 {[%emt 0:05:00]} 17. Qe2 {[%emt 0:00:00]} Nxb2 {[%emt 0:01:01]} 18. Rb1 {[%emt 0:00:00]} c5 {[%emt 0:02:54] Hoping for ...Nc4.} 19. N4f3 {[%emt 0:00:00]} (19. Nc2 $11 {keeps the balance.}) 19... dxe4 $17 {[%emt 0:17:50]} 20. Nxe4 {[%emt 0:00:00]} Qd3 $1 {[%emt 0:00:17]} ({Much weaker is} 20... Bf5 21. Bc2 Na4 22. Rxb7 Bxe4 23. Bxe4 Nxc3 24. Qc4 Nxe4 25. Qxe4 $11) 21. Qxd3 {[%emt 0:00:00]} Nxd3 {[%emt 0:00:06]} 22. Bc4 $2 {[%emt 0:00:00] Now White is beyond hope.} (22. Nd6 $17 Nf5 23. Nxf5 Bxf5 24. Bd5) 22... Nf5 $19 {[%emt 0:01:19][%cal Be7f5,Bf5d6,Bd6c4][%mdl 32]} 23. Bd2 {[%emt 0:02:02] [#]} b5 $1 {[%emt 0:00:49]} 24. Bxd3 {[%emt 0:00:30] Strongly threatening Kh2.} c4+ {[%emt 0:00:01][%mdl 64] Discovered Attack} 25. Kh2 {[%emt 0:00:05]} cxd3 {[%emt 0:00:03]} 26. Rfe1 {[%emt 0:02:16]} Bb7 {[%emt 0:02:47] Threatens to win with ...Rfe8.} 27. Ng3 {[%emt 0:04:08]} Nd6 {[%emt 0:00:37]} 28. Be3 $2 {[%emt 0:01:09]} (28. Rbd1) 28... Bxf3 {[%emt 0:03:17] Black is clearly winning.} 29. Bxa7 {[%emt 0:00:13]} Rxa7 {[%emt 0:00:25]} 30. gxf3 {[%emt 0:00:04]} Nc4 {[%emt 0:00:25] ...Nd2 is the strong threat.} 31. Rbd1 {[%emt 0:03:03] Against Nd2} Rd7 {[%emt 0:00:37]} 32. Re4 {[%emt 0:00:00]} Rfd8 {[%emt 0:00:31]} 33. Nf5 {[%emt 0:00:15]} (33. Nf1 $142 d2 34. Kg3) 33... d2 {[%emt 0:02:18] aiming for ...Rd3.} 34. Nd4 {[%emt 0:00:04]} f5 {[%emt 0:00:40]} 35. Re2 {[%emt 0:00:30]} b4 {[%emt 0:00:32][%cal Bb5b4,Bb4c3][%mdl 32]} 36. Nc6 {[%emt 0:00:29] [#]} bxc3 $1 {[%emt 0:00:11] ( -> ...c2)} 37. Nxd8 {[%emt 0:00:04]} Rxd8 {[%emt 0:00:04] Weighted Error Value: White=0.79/Black=0.04 (flawless)} 0-1

[Event "5th Sharjah Masters 2022"]
[Site "Sharjah"]
[Date "2022.05.26"]
[Round "6.31"]
[White "Davtyan, Artur"]
[Black "Aziz, Husain"]
[Result "1-0"]
[ECO "D35"]
[WhiteElo "2488"]
[BlackElo "2379"]
[Annotator "TA"]
[PlyCount "61"]
[EventDate "2022.05.21"]
[EventType "swiss"]
[EventCountry "UAE"]
[SourceTitle "playchess.com"]
[Source "ChessBase"]
[SourceQuality "1"]
[TimeControl "5400+30"]

{[%evp 18,60,15,11,10,3,7,0,10,16,6,9,23,22,20,0,0,-2,0,-3,-16,-11,130,-116,0,0,0,0,140,152,154,137,137,150,472,468,812,810,1002,827,29991,29992,29998,29999,29999]} 1. d4 {[%emt 0:00:05]} d5 {[%emt 0:00:10]} 2. c4 {[%emt 0:00:09]} e6 {[%emt 0:00:13]} 3. Nc3 {[%emt 0:00:08]} Nf6 {[%emt 0:00:25]} 4. cxd5 {[%emt 0:00:06]} exd5 {[%emt 0:00:13]} 5. Bg5 {[%emt 0:00:06]} c6 {[%emt 0:00:14]} 6. Qc2 {[%emt 0:00:11]} Bd6 {[%emt 0:01:15]} 7. e3 {[%emt 0:00:32]} O-O {[%emt 0:00:22]} 8. Bd3 {[%emt 0:00:15]} h6 {[%emt 0:00:18]} 9. Bh4 {[%emt 0:00:05]} Re8 {[%emt 0:01:23]} 10. Nf3 {[%emt 0:04:26]} Be6 {[%emt 0:00:44] D35: Queen's Gambit Declined: Exchange Variation.} 11. O-O {[%emt 0:06:03]} Nbd7 {[%emt 0:00:29] [#] Against Ne5} 12. Kh1 $146 {[%emt 0:10:43]} ({Predecessor:} 12. Rab1 a5 13. a3 Qb8 14. Rfc1 Ng4 15. Bg3 Bxg3 16. hxg3 Ndf6 17. b4 axb4 18. axb4 Qd6 {½-½ (86) Aronian,L (2782)-Ding,L (2799) chess24.com INT 2021}) 12... Qb8 {[%emt 0:03:48] The position is equal.} 13. Rae1 {[%emt 0:10:03]} a5 {[%emt 0:07:35]} 14. Nd2 {[%emt 0:19:25]} Bxh2 {[%emt 0:21:47]} 15. g3 {[%emt 0:11:03] And now Bxf6 would win.} Ng4 {[%emt 0:10:52]} 16. e4 {[%emt 0:18:53]} g5 $1 {[%emt 0:08:13]} 17. exd5 {[%emt 0:00:46]} Bxd5+ {[%emt 0:15:11]} (17... gxh4 $2 18. dxe6 Kh8 19. Be2 (19. exd7 Rxe1 20. d8=Q+ Qxd8 $11) 19... Rxe6 20. Bxg4 $18) (17... cxd5 18. Bf5 $1 $16) 18. Nxd5 {[%emt 0:01:41] Strongly threatening Rxe8+.} Rxe1 {[%emt 0:00:19]} (18... cxd5 19. Be2 Ndf6 20. Qf5 $1 Rxe2 21. Rxe2 gxh4 22. f3 $16) 19. Rxe1 {[%emt 0:03:44][%cal Bf1e1,Be1e7,Be7f7][%mdl 32] Chess con chili.} gxh4 {[%emt 0:00:09]} (19... Nxf2+ 20. Kxh2 cxd5 21. Bxg5 $1 (21. Bh7+ Kg7 $16) 21... Nxd3 22. Qxd3 $14) (19... cxd5 $11 20. Bf5 Nxf2+ 21. Kxh2 gxh4) 20. Bh7+ $2 {[%emt 0:05:28] [#]} (20. Ne7+ $1 $16 {is forced if you want to stay better.} Kf8 21. Nf5 hxg3 22. Bc4) 20... Kh8 {[%emt 0:03:10]} ({Better is} 20... Kf8 $1 $17 21. Nf1 (21. Qf5 Nxf2+ 22. Qxf2 Bxg3 $17) 21... hxg3) 21. Qf5 $11 {[%emt 0:00:28]} Nxf2+ {[%emt 0:03:48]} 22. Qxf2 {[%emt 0:00:15]} Bxg3 {[%emt 0:00:03] [#]} (22... hxg3 $11 {remains equal.} 23. Qf3 (23. Qxf7 g2+ 24. Kxg2 Qg3+ 25. Kf1 Qh3+ 26. Ke2 Rf8 $15) 23... cxd5) 23. Qxf7 $1 $16 {[%emt 0:00:40][%cal Od5e7] Threatening mate with Ne7! 0x0.001a2c250e0ddp-1022s more active pieces.} Qf8 {[%emt 0:20:09]} (23... Bxe1 {[#] gets mated.} 24. Ne7 $1 Qg3 25. Ng6+) 24. Re7 {[%emt 0:00:13][%cal Of7g6] Qg6! is the strong threat.} ({Not} 24. Qxd7 Bxe1 25. Be4 Qg7 $11) 24... Qxf7 {[%emt 0:00:26]} 25. Rxf7 {[%emt 0:00:02] Hoping for Ne7.} Nf8 $2 {[%emt 0:00:08] A mistake that costs the game.} (25... Rf8 $16 26. Rxd7 cxd5) 26. Nf6 $18 {[%emt 0:00:11]} h3 {[%emt 0:01:11]} (26... Ne6 $142 27. Nde4 Rf8) 27. Nf3 {[%emt 0:02:02] White threatens Bf5 and mate.} Rd8 {[%emt 0:00:54]} 28. Bf5 {[%emt 0:01:01] Ne5 would kill now.} h2 {[%emt 0:00:14]} 29. Ne5 {[%emt 0:00:23] White mates.} Rxd4 {[%emt 0:00:20]} 30. Ng6+ {[%emt 0:00:08]} Nxg6 {[%emt 0:00:07]} 31. Rh7# {[%emt 0:00:02] Weighted Error Value: White=0.23 (precise) /Black=0.73} 1-0

[Event "5th Sharjah Masters 2022"]
[Site "Sharjah"]
[Date "2022.05.26"]
[Round "6.32"]
[White "Erdogdu, Mert"]
[Black "Gunina, Valentina"]
[Result "1-0"]
[ECO "D11"]
[WhiteElo "2407"]
[BlackElo "2471"]
[Annotator "TA"]
[PlyCount "103"]
[EventDate "2022.05.21"]
[EventType "swiss"]
[EventCountry "UAE"]
[SourceTitle "playchess.com"]
[Source "ChessBase"]
[SourceQuality "1"]
[TimeControl "5400+30"]

{[%evp 9,103,0,0,-11,0,0,0,0,0,0,0,0,0,0,0,0,0,-14,-13,-14,-16,-22,74,62,151,76,98,44,215,208,208,54,102,60,104,82,187,157,289,284,625,617,796,759,827,829,826,818,791,752,937,899,1080,1088,1088,1085,1039,1016,1725,1015,953,884,952,825,1747,1432,5227,5017,6507,5547,6468,6119,6103,6187,5095,5095,12834,7378,12840,12839,29986,29987,29987,29988,29989,29990,29990,29990,29990,29991,29992,29992,29992,29989,29990,29991]} 1. d4 {[%emt 0:00:04]} d5 {[%emt 0:00:09]} 2. c4 {[%emt 0:00:06]} c6 {[%emt 0:00:04]} 3. Nf3 {[%emt 0:00:05]} Nf6 {[%emt 0:00:05]} 4. Qc2 {[%emt 0:00:04]} dxc4 {[%emt 0:00:08]} 5. e4 {[%emt 0:00:05]} b5 {[%emt 0:00:09]} 6. b3 {[%emt 0:00:13] D11: Slav Defence: 3 Nf3 sidelines and 3...Nf6 4 e3 Bg4.} cxb3 {[%emt 0:00:08]} 7. axb3 {[%emt 0:00:06]} e6 {[%emt 0:00:18]} 8. Bd2 {[%emt 0:00:27] The position is equal.} a5 {[%emt 0:00:30] 8...Bb7 is more advanced technology.} 9. Bd3 {[%emt 0:00:06]} Bb7 {[%emt 0:00:51]} 10. O-O {[%emt 0:00:49]} Be7 {[%emt 0:00:06]} 11. Rc1 {[%emt 0:00:30][%cal Bf1c1,Bc1c2,Bc2c5][%mdl 32]} h6 {[%emt 0:00:40]} 12. Nc3 {[%emt 0:00:17]} Na6 {[%emt 0:00:35][%cal Bb8a6,Ba6b4,Bb4c2][%mdl 32]} 13. e5 {[%emt 0:00:08]} Nb4 {[%emt 0:16:56]} 14. exf6 {[%emt 0:00:38]} Nxc2 {[%emt 0:00:08]} 15. fxe7 {[%emt 0:00:05] [#]} Kxe7 {[%emt 0:01:42]} 16. Rxc2 $16 {[%emt 0:02:27] [#]} g5 $146 {[%emt 0:13:01]} ({Better is} 16... Rf8 $14) ({Predecessor:} 16... c5 17. Nxb5 Bxf3 18. gxf3 cxd4 19. Rc7+ Kf6 20. Rac1 a4 21. bxa4 Rxa4 22. Bf4 g5 {1-0 (31) Wirig,A (2489)-Van der Stricht,G (2393) Charleroi 2010}) 17. h3 {[%emt 0:08:50]} ({White should play} 17. Ne4) 17... Rg8 {[%emt 0:03:21]} 18. Ne4 {[%emt 0:14:28][%cal Bc3e4,Be4g3,Bg3h5][%mdl 32] Threatens to win with Nc5.} g4 $2 {[%emt 0:03:47]} (18... c5 $1 $14) 19. hxg4 $18 {[%emt 0:00:32]} Rxg4 {[%emt 0:00:12][%cal Oc6c5]} 20. Bxh6 $2 {[%emt 0:31:37]} (20. Nc5 $18) 20... f6 {[%emt 0:02:45]} (20... a4 $14 21. bxa4 c5 22. Bg5+ Rxg5 23. Nexg5 Rxa4) 21. Rc5 {[%emt 0:05:31][%cal Oe4f6][%mdl 1024] Black must now prevent Nxf6! White has strong compensation.} Qh8 {[%emt 0:00:46]} 22. Bd2 {[%emt 0:07:35] 0x0.002158316108dp-1022s more active pieces. This bishop pair is nice.} (22. Rh5 Rg6 23. Nc5 Rxh6 $17) 22... Rag8 {[%emt 0:00:18]} ({Weaker is} 22... Qh3 23. Ng3 Rxg3 24. fxg3 Qxg3 25. Rf1 $16 (25. Rxa5 Rg8 $16)) (22... Qg8 $16 {was called for.}) 23. Ng3 {[%emt 0:01:50] Dancing on a razor blade.} f5 {[%emt 0:01:14]} (23... Rxg3 $16 24. fxg3 Rxg3) 24. Re1 {[%emt 0:02:16]} (24. Rxa5 Rxg3 25. fxg3 Rxg3 $16) 24... f4 {[%emt 0:01:14]} (24... Kd6 25. Rce5 Bc8 26. Bxa5 Bd7) 25. Bf5 {[%emt 0:11:33]} Bc8 {[%emt 0:08:19]} 26. Bxg4 {[%emt 0:00:41]} Rxg4 {[%emt 0:00:13]} 27. Nh5 {[%emt 0:04:23]} Bd7 {[%emt 0:09:07]} 28. Nxf4 {[%emt 0:00:43]} Rg7 {[%emt 0:03:38]} 29. Rce5 {[%emt 0:02:40]} Kd6 {[%emt 0:01:05]} 30. Ng5 {[%emt 0:01:18]} Qh4 {[%emt 0:03:39]} 31. Nfxe6 {[%emt 0:00:42]} Bxe6 {[%emt 0:01:28]} 32. Rxe6+ {[%emt 0:00:08]} Kd7 {[%emt 0:00:06]} 33. R6e4 {[%emt 0:01:39]} Qh5 {[%emt 0:00:09]} 34. Re5 {[%emt 0:00:46] Hoping for Ne6.} Qg4 {[%emt 0:00:22]} 35. Be3 {[%emt 0:00:23]} Rg8 {[%emt 0:02:06]} 36. d5 {[%emt 0:00:44][%cal Bd4d5,Bd5c6][%mdl 32] aiming for dxc6+.} Qb4 {[%emt 0:01:39]} 37. dxc6+ {[%emt 0:00:24]} Kc7 {[%emt 0:02:55]} 38. Rc1 {[%emt 0:01:04]} Rh8 {[%emt 0:02:08]} 39. Ne6+ {[%emt 0:00:34]} Kc8 {[%emt 0:00:06]} 40. Nd4 {[%emt 0:00:47]} Qd6 {[%emt 0:02:58]} 41. Rxb5 {[%emt 0:01:05]} Qh2+ {[%emt 0:00:12]} 42. Kf1 {[%emt 0:00:31]} Re8 {[%emt 0:01:46]} 43. Rc4 {[%emt 0:01:33]} Qh1+ {[%emt 0:01:17]} 44. Ke2 {[%emt 0:00:04] Threatening mate with c7.} Kc7 {[%emt 0:01:47]} 45. Rb7+ {[%emt 0:00:11] White mates.} Kc8 {[%emt 0:00:08]} 46. Nf5 {[%emt 0:01:30]} Qh5+ {[%emt 0:05:17]} 47. g4 {[%emt 0:00:02]} Qg6 {[%emt 0:00:06]} 48. Ne7+ {[%emt 0:00:39]} Rxe7 {[%emt 0:00:05]} 49. Rxe7 {[%emt 0:00:04]} a4 {[%emt 0:00:09]} 50. bxa4 {[%emt 0:00:46][%cal Bb3a4,Ba4a5][%mdl 32]} Qg8 {[%emt 0:00:07]} 51. Ree4 {[%emt 0:00:18]} Kc7 {[%emt 0:00:18]} 52. a5 {[%emt 0:00:06] Weighted Error Value: White=0.22 (precise) /Black=0.58} 1-0